[Event "ESTCC 65 2019"]
[Site "Mali Losinj"]
[Date "2019.09.26"]
[Round "9.5"]
[White "Rantanen, Yrjo A."]
[Black "Huss, Andreas"]
[Result "1/2-1/2"]
[ECO "E13"]
[WhiteElo "2309"]
[BlackElo "2261"]
[Annotator "NA"]
[PlyCount "60"]
[EventDate "2019.09.18"]
[EventType "team-tourn"]
[EventCountry "CRO"]
[SourceTitle "playchess.com"]
[Source "ChessBase"]
[SourceQuality "1"]
[WhiteTeam "Finland"]
[BlackTeam "Switzerland"]
[WhiteTeamCountry "FIN"]
[BlackTeamCountry "SUI"]
[TimeControl "40/5400+30:1800+30"]

1. d4 {[%emt 0:00:30]} e6 {[%emt 0:00:30]} 2. c4 {[%emt 0:00:00]} Nf6 {[%emt 0:00:00]} 3. Nf3 {[%emt 0:00:00]} b6 {[%emt 0:00:00]} 4. Nc3 {[%emt 0:00:30]} Bb4 {[%emt 0:00:30]} 5. Bg5 {[%emt 0:00:30]} h6 {[%emt 0:00:30]} 6. Bh4 {[%emt 0:00:30]} Bb7 {[%emt 0:01:30]} 7. Nd2 {[%emt 0:00:00]} c5 {[%emt 0:01:30]} 8. a3 {[%emt 0:01:00]} Bxc3 {[%emt 0:04:30]} 9. bxc3 {[%emt 0:00:00]} d6 {[%emt 0:01:30]} 10. f3 {[%emt 0:03:00]} e5 {[%emt 0:02:30]} 11. e3 {[%emt 0:08:30]} Qe7 {[%emt 0:01:30]} 12. d5 {[%emt 0:04:30]} Nbd7 {[%emt 0:07:30]} 13. Bd3 {[%emt 0:02:30]} g5 {[%emt 0:05:30]} 14. Bf2 {[%emt 0:05:30]} Nh5 {[%emt 0:01:30]} 15. Qc2 {[%emt 0:00:30]} Ng7 {[%emt 0:00:30]} 16. a4 {[%emt 0:00:30]} a5 {[%emt 0:00:30]} 17. O-O-O {[%emt 0:00:30]} O-O-O {[%emt 0:01:30]} 18. h4 {[%emt 0:01:30]} Rdf8 {[%emt 0:05:30]} 19. g4 {[%emt 0:08:30]} Kc7 {[%emt 0:02:30]} 20. Rdg1 {[%emt 0:03:30]} Bc8 {[%emt 0:04:30]} 21. Rg2 {[%emt 0:02:30]} Qe8 {[%emt 0:07:30]} 22. Ne4 {[%emt 0:04:30]} f6 {[%emt 0:05:30]} 23. Rgh2 {[%emt 0:05:30]} gxh4 {[%emt 0:08:30]} 24. Rxh4 {[%emt 0:03:30]} h5 {[%emt 0:03:30]} 25. Ng3 {[%emt 0:09:30]} hxg4 {[%emt 0:01:30]} 26. Rh7 {[%emt 0:00:30]} Rxh7 {[%emt 0:00:30]} 27. Rxh7 {[%emt 0:00:30]} Rg8 {[%emt 0:00:30]} 28. Bg6 {[%emt 0:01:30]} Qf8 {[%emt 0:06:30]} 29. fxg4 {[%emt 0:07:30]} Rh8 {[%emt 0:01:30]} 30. Bh5 {[%emt 0:01:30]} f5 {[%emt 0:07:09]} 1/2-1/2

[Event "ESTCC 65 2019"]
[Site "Mali Losinj"]
[Date "2019.09.26"]
[Round "9.6"]
[White "Vucenovic, Dragomir"]
[Black "Westerinen, Heikki M.J."]
[Result "1/2-1/2"]
[ECO "E60"]
[WhiteElo "2154"]
[BlackElo "2296"]
[Annotator "NA"]
[PlyCount "61"]
[EventDate "2019.09.18"]
[EventType "team-tourn"]
[EventCountry "CRO"]
[SourceTitle "playchess.com"]
[Source "ChessBase"]
[SourceQuality "1"]
[WhiteTeam "Switzerland"]
[BlackTeam "Finland"]
[WhiteTeamCountry "SUI"]
[BlackTeamCountry "FIN"]
[TimeControl "40/5400+30:1800+30"]

1. d4 {[%emt 0:00:30]} Nf6 {[%emt 0:00:30]} 2. Nf3 {[%emt 0:00:00]} g6 {[%emt 0:00:30]} 3. g3 {[%emt 0:01:00]} Bg7 {[%emt 0:00:30]} 4. Bg2 {[%emt 0:00:00]} O-O {[%emt 0:00:30]} 5. O-O {[%emt 0:00:00]} d6 {[%emt 0:01:30]} 6. c4 {[%emt 0:00:30]} Nc6 {[%emt 0:00:30]} 7. b3 {[%emt 0:01:30]} Ne4 {[%emt 0:15:30]} 8. Bb2 {[%emt 0:02:30]} f5 {[%emt 0:06:30]} 9. e3 {[%emt 0:05:30]} e5 {[%emt 0:01:30]} 10. d5 {[%emt 0:19:30]} Ne7 {[%emt 0:05:30]} 11. Nc3 {[%emt 0:02:30]} Nxc3 {[%emt 0:01:30]} 12. Bxc3 {[%emt 0:00:00]} h6 {[%emt 0:01:30]} 13. Ne1 {[%emt 0:02:00]} g5 {[%emt 0:01:30]} 14. f4 {[%emt 0:05:30]} Ng6 {[%emt 0:07:30]} 15. Qh5 {[%emt 0:11:30]} Kh7 {[%emt 0:07:30]} 16. Nd3 {[%emt 0:22:30]} Qe7 {[%emt 0:15:30]} 17. Rae1 {[%emt 0:05:03]} gxf4 {[%emt 0:01:30]} 18. exf4 {[%emt 0:01:07]} e4 {[%emt 0:00:30]} 19. Bxg7 {[%emt 0:01:03]} Qxg7 {[%emt 0:00:30]} 20. Nf2 {[%emt 0:00:52]} Bd7 {[%emt 0:00:30]} 21. Nd1 {[%emt 0:01:35]} Rae8 {[%emt 0:10:00]} 22. Ne3 {[%emt 0:00:07]} Qf6 {[%emt 0:02:13]} 23. Kh1 {[%emt 0:00:21]} Re7 {[%emt 0:01:34]} 24. Bh3 {[%emt 0:00:46]} Ref7 {[%emt 0:00:56]} 25. Rf2 {[%emt 0:00:58]} Qc3 {[%emt 0:01:24]} 26. Qe2 {[%emt 0:01:02]} Re7 {[%emt 0:01:05]} 27. Qd2 {[%emt 0:00:40]} Qxd2 {[%emt 0:01:35]} 28. Rxd2 {[%emt 0:00:02]} h5 {[%emt 0:00:22]} 29. Rf2 {[%emt 0:00:46]} Kg7 {[%emt 0:00:52]} 30. Rg1 {[%emt 0:00:43]} Kf6 {[%emt 0:00:26]} 31. Bf1 {[%emt 0:00:26]} 1/2-1/2

[Event "ESTCC 65 2019"]
[Site "Mali Losinj"]
[Date "2019.09.26"]
[Round "9.7"]
[White "Kivimaki, Jaakko"]
[Black "Hohler, Peter"]
[Result "1/2-1/2"]
[ECO "E11"]
[WhiteElo "2195"]
[BlackElo "2047"]
[Annotator "NA"]
[PlyCount "60"]
[EventDate "2019.09.18"]
[EventType "team-tourn"]
[EventCountry "CRO"]
[SourceTitle "playchess.com"]
[Source "ChessBase"]
[SourceQuality "1"]
[WhiteTeam "Finland"]
[BlackTeam "Switzerland"]
[WhiteTeamCountry "FIN"]
[BlackTeamCountry "SUI"]
[TimeControl "40/5400+30:1800+30"]

1. d4 {[%emt 0:00:30]} Nf6 {[%emt 0:00:30]} 2. Nf3 {[%emt 0:00:00]} d5 {[%emt 0:00:30]} 3. c4 {[%emt 0:01:00]} e6 {[%emt 0:01:30]} 4. e3 {[%emt 0:00:30]} Bb4+ {[%emt 0:01:30]} 5. Nbd2 {[%emt 0:01:30]} O-O {[%emt 0:00:30]} 6. a3 {[%emt 0:00:30]} Be7 {[%emt 0:01:30]} 7. Bd3 {[%emt 0:01:30]} Nbd7 {[%emt 0:01:30]} 8. O-O {[%emt 0:00:30]} c5 {[%emt 0:01:30]} 9. Qe2 {[%emt 0:04:30]} cxd4 {[%emt 0:15:30]} 10. exd4 {[%emt 0:00:30]} dxc4 {[%emt 0:00:30]} 11. Nxc4 {[%emt 0:00:30]} Nb6 {[%emt 0:00:30]} 12. Nxb6 {[%emt 0:11:30]} Qxb6 {[%emt 0:00:00]} 13. Be3 {[%emt 0:00:30]} Qd6 {[%emt 0:02:00]} 14. Ne5 {[%emt 0:01:30]} Bd7 {[%emt 0:04:30]} 15. Nxd7 {[%emt 0:02:30]} Qxd7 {[%emt 0:00:30]} 16. Rac1 {[%emt 0:06:30]} Rfc8 {[%emt 0:07:30]} 17. Qf3 {[%emt 0:11:30]} Rxc1 {[%emt 0:10:30]} 18. Rxc1 {[%emt 0:00:30]} Rc8 {[%emt 0:01:30]} 19. Qd1 {[%emt 0:02:30]} Nd5 {[%emt 0:03:30]} 20. Qd2 {[%emt 0:07:30]} a6 {[%emt 0:03:30]} 21. Rc2 {[%emt 0:03:30]} Rc7 {[%emt 0:09:30]} 22. Rxc7 {[%emt 0:00:30]} Qxc7 {[%emt 0:00:30]} 23. Qc2 {[%emt 0:00:30]} Qxc2 {[%emt 0:01:30]} 24. Bxc2 {[%emt 0:00:30]} h6 {[%emt 0:01:30]} 25. Kf1 {[%emt 0:04:30]} Kf8 {[%emt 0:00:30]} 26. Ke2 {[%emt 0:00:30]} Ke8 {[%emt 0:00:30]} 27. Bd2 {[%emt 0:00:30]} Kd7 {[%emt 0:00:30]} 28. Kd3 {[%emt 0:02:30]} b5 {[%emt 0:03:30]} 29. g3 {[%emt 0:00:30]} Kc6 {[%emt 0:01:30]} 30. Bd1 {[%emt 0:00:30]} Bd8 {[%emt 0:04:30]} 1/2-1/2

[Event "ESTCC 65 2019"]
[Site "Mali Losinj"]
[Date "2019.09.26"]
[Round "9.8"]
[White "Staechelin, Ruedi"]
[Black "Vinke, Dietmar"]
[Result "1/2-1/2"]
[ECO "B10"]
[WhiteElo "2002"]
[BlackElo "2129"]
[Annotator "NA"]
[PlyCount "60"]
[EventDate "2019.09.18"]
[EventType "team-tourn"]
[EventCountry "CRO"]
[SourceTitle "playchess.com"]
[Source "ChessBase"]
[SourceQuality "1"]
[WhiteTeam "Switzerland"]
[BlackTeam "Finland"]
[WhiteTeamCountry "SUI"]
[BlackTeamCountry "FIN"]
[TimeControl "40/5400+30:1800+30"]

1. e4 {[%emt 0:00:30]} c6 {[%emt 0:00:30]} 2. d3 {[%emt 0:00:00]} g6 {[%emt 0:00:30]} 3. Nd2 {[%emt 0:01:00]} Bg7 {[%emt 0:01:30]} 4. g3 {[%emt 0:01:30]} e5 {[%emt 0:02:30]} 5. Bg2 {[%emt 0:01:30]} Ne7 {[%emt 0:00:30]} 6. Ne2 {[%emt 0:01:30]} O-O {[%emt 0:00:30]} 7. O-O {[%emt 0:01:30]} d6 {[%emt 0:02:30]} 8. c3 {[%emt 0:04:30]} Be6 {[%emt 0:04:30]} 9. d4 {[%emt 0:05:30]} Qd7 {[%emt 0:01:30]} 10. dxe5 {[%emt 0:04:30]} dxe5 {[%emt 0:00:00]} 11. Nb3 {[%emt 0:02:30]} Bc4 {[%emt 0:11:00]} 12. Qxd7 {[%emt 0:03:30]} Nxd7 {[%emt 0:01:30]} 13. Re1 {[%emt 0:00:30]} b6 {[%emt 0:03:30]} 14. Be3 {[%emt 0:03:30]} Nf6 {[%emt 0:00:30]} 15. f3 {[%emt 0:00:30]} Rad8 {[%emt 0:02:30]} 16. Kf2 {[%emt 0:06:30]} Rd6 {[%emt 0:02:30]} 17. Red1 {[%emt 0:03:30]} Rfd8 {[%emt 0:00:30]} 18. Ke1 {[%emt 0:01:30]} Nc8 {[%emt 0:05:30]} 19. Bh3 {[%emt 0:00:30]} Ne7 {[%emt 0:00:30]} 20. Rxd6 {[%emt 0:01:30]} Rxd6 {[%emt 0:00:30]} 21. Rd1 {[%emt 0:00:00]} Ne8 {[%emt 0:06:30]} 22. Nec1 {[%emt 0:03:00]} Rxd1+ {[%emt 0:04:30]} 23. Kxd1 {[%emt 0:00:00]} Nd6 {[%emt 0:00:30]} 24. Nd2 {[%emt 0:02:00]} Ba6 {[%emt 0:00:00]} 25. b3 {[%emt 0:00:30]} f5 {[%emt 0:03:00]} 26. Kc2 {[%emt 0:03:30]} c5 {[%emt 0:05:30]} 27. Bg2 {[%emt 0:10:30]} Kf7 {[%emt 0:11:30]} 28. a4 {[%emt 0:04:30]} fxe4 {[%emt 0:07:30]} 29. fxe4 {[%emt 0:07:30]} Ng8 {[%emt 0:00:30]} 30. Nd3 {[%emt 0:00:30]} Bxd3+ {[%emt 0:05:48]} 1/2-1/2

[Event "ESTCC 65 2019"]
[Site "Mali Losinj"]
[Date "2019.09.26"]
[Round "9.9"]
[White "Werner, Clemens"]
[Black "Singer, Hans"]
[Result "1-0"]
[ECO "B11"]
[WhiteElo "2286"]
[BlackElo "2184"]
[Annotator "NA"]
[PlyCount "43"]
[EventDate "2019.09.18"]
[EventType "team-tourn"]
[EventCountry "CRO"]
[SourceTitle "playchess.com"]
[Source "ChessBase"]
[SourceQuality "1"]
[WhiteTeam "Germany"]
[BlackTeam "Austria"]
[WhiteTeamCountry "GER"]
[BlackTeamCountry "AUT"]
[TimeControl "40/5400+30:1800+30"]

1. e4 {[%emt 0:00:30]} c6 {[%emt 0:00:30]} 2. Nc3 {[%emt 0:00:00]} d5 {[%emt 0:00:00]} 3. Nf3 {[%emt 0:00:00]} dxe4 {[%emt 0:01:00]} 4. Nxe4 {[%emt 0:01:30]} Nf6 {[%emt 0:00:00]} 5. Qe2 {[%emt 0:01:30]} Nxe4 {[%emt 0:02:00]} 6. Qxe4 {[%emt 0:00:30]} Qd5 {[%emt 0:05:30]} 7. Qh4 {[%emt 0:03:30]} Bf5 {[%emt 0:02:30]} 8. Bc4 {[%emt 0:01:30]} Qe4+ {[%emt 0:00:00]} 9. Qxe4 {[%emt 0:00:00]} Bxe4 {[%emt 0:01:00]} 10. Bxf7+ {[%emt 0:00:00]} Kd8 {[%emt 0:00:30]} 11. d3 {[%emt 0:08:30]} Bxf3 {[%emt 0:00:00]} 12. gxf3 {[%emt 0:00:30]} g6 {[%emt 0:08:00]} 13. h4 {[%emt 0:05:30]} Bg7 {[%emt 0:00:30]} 14. h5 {[%emt 0:00:30]} gxh5 {[%emt 0:00:30]} 15. Rxh5 {[%emt 0:01:30]} Nd7 {[%emt 0:01:30]} 16. Be6 {[%emt 0:05:30]} Nf8 {[%emt 0:07:30]} 17. Bf5 {[%emt 0:01:30]} e6 {[%emt 0:02:30]} 18. Be4 {[%emt 0:01:30]} Kd7 {[%emt 0:07:30]} 19. c3 {[%emt 0:01:30]} Ng6 {[%emt 0:03:30]} 20. Be3 {[%emt 0:00:30]} e5 {[%emt 0:05:30]} 21. Kd2 {[%emt 0:03:30]} Bf6 {[%emt 0:06:30]} 22. Rah1 {[%emt 0:01:30]} 1-0

[Event "ESTCC 65 2019"]
[Site "Mali Losinj"]
[Date "2019.09.26"]
[Round "9.10"]
[White "Woeber, Friedrich"]
[Black "Kierzek, Matthias"]
[Result "1/2-1/2"]
[ECO "D00"]
[WhiteElo "2126"]
[BlackElo "2186"]
[Annotator "NA"]
[PlyCount "65"]
[EventDate "2019.09.18"]
[EventType "team-tourn"]
[EventCountry "CRO"]
[SourceTitle "playchess.com"]
[Source "ChessBase"]
[SourceQuality "1"]
[WhiteTeam "Austria"]
[BlackTeam "Germany"]
[WhiteTeamCountry "AUT"]
[BlackTeamCountry "GER"]
[TimeControl "40/5400+30:1800+30"]

1. d4 {[%emt 0:00:30]} d5 {[%emt 0:00:30]} 2. Bf4 {[%emt 0:00:30]} Nf6 {[%emt 0:00:00]} 3. e3 {[%emt 0:00:00]} c5 {[%emt 0:00:00]} 4. c3 {[%emt 0:02:00]} Nc6 {[%emt 0:04:30]} 5. Nd2 {[%emt 0:01:30]} Qb6 {[%emt 0:11:30]} 6. Qb3 {[%emt 0:00:30]} c4 {[%emt 0:00:30]} 7. Qc2 {[%emt 0:00:30]} Qa5 {[%emt 0:01:30]} 8. Ngf3 {[%emt 0:00:30]} b5 {[%emt 0:03:30]} 9. e4 {[%emt 0:04:30]} e6 {[%emt 0:01:30]} 10. Be2 {[%emt 0:03:30]} Be7 {[%emt 0:05:30]} 11. O-O {[%emt 0:00:30]} O-O {[%emt 0:01:30]} 12. Rfe1 {[%emt 0:09:30]} Bd7 {[%emt 0:07:30]} 13. b4 {[%emt 0:11:30]} Qb6 {[%emt 0:02:30]} 14. Ne5 {[%emt 0:01:30]} Nxe5 {[%emt 0:05:30]} 15. Bxe5 {[%emt 0:03:30]} a5 {[%emt 0:03:30]} 16. a3 {[%emt 0:00:30]} axb4 {[%emt 0:02:30]} 17. axb4 {[%emt 0:00:00]} Qb7 {[%emt 0:00:30]} 18. Bf3 {[%emt 0:02:00]} Rxa1 {[%emt 0:05:30]} 19. Rxa1 {[%emt 0:00:30]} Ra8 {[%emt 0:00:30]} 20. Rxa8+ {[%emt 0:03:30]} Qxa8 {[%emt 0:00:00]} 21. Bxf6 {[%emt 0:01:30]} Bxf6 {[%emt 0:00:00]} 22. exd5 {[%emt 0:00:30]} exd5 {[%emt 0:00:30]} 23. Nf1 {[%emt 0:00:30]} Be6 {[%emt 0:02:30]} 24. Ne3 {[%emt 0:10:30]} Qa1+ {[%emt 0:04:30]} 25. Bd1 {[%emt 0:00:30]} Bg5 {[%emt 0:04:30]} 26. h3 {[%emt 0:00:00]} g6 {[%emt 0:00:30]} 27. Kh2 {[%emt 0:02:00]} Bf4+ {[%emt 0:01:30]} 28. g3 {[%emt 0:00:30]} Bxe3 {[%emt 0:00:30]} 29. fxe3 {[%emt 0:00:30]} Bf5 {[%emt 0:00:30]} 30. Qd2 {[%emt 0:00:30]} Be4 {[%emt 0:00:30]} 31. g4 {[%emt 0:00:30]} g5 {[%emt 0:02:30]} 32. Kg3 {[%emt 0:00:30]} Qa6 {[%emt 0:03:30]} 33. Bf3 {[%emt 0:01:30]} 1/2-1/2

[Event "ESTCC 65 2019"]
[Site "Mali Losinj"]
[Date "2019.09.26"]
[Round "9.11"]
[White "Herbrechtsmeier, Christof"]
[Black "Titz, Heimo"]
[Result "1-0"]
[ECO "B49"]
[WhiteElo "2210"]
[BlackElo "1971"]
[Annotator "NA"]
[PlyCount "37"]
[EventDate "2019.09.18"]
[EventType "team-tourn"]
[EventCountry "CRO"]
[SourceTitle "playchess.com"]
[Source "ChessBase"]
[SourceQuality "1"]
[WhiteTeam "Germany"]
[BlackTeam "Austria"]
[WhiteTeamCountry "GER"]
[BlackTeamCountry "AUT"]
[TimeControl "40/5400+30:1800+30"]

1. e4 {[%emt 0:00:30]} c5 {[%emt 0:00:30]} 2. Nf3 {[%emt 0:00:00]} Nc6 {[%emt 0:00:30]} 3. d4 {[%emt 0:00:00]} cxd4 {[%emt 0:00:30]} 4. Nxd4 {[%emt 0:02:30]} e6 {[%emt 0:01:30]} 5. Nc3 {[%emt 0:00:30]} Qc7 {[%emt 0:00:30]} 6. Be2 {[%emt 0:00:30]} Nf6 {[%emt 0:00:30]} 7. O-O {[%emt 0:00:00]} a6 {[%emt 0:00:00]} 8. Be3 {[%emt 0:02:00]} Nxd4 {[%emt 0:03:00]} 9. Qxd4 {[%emt 0:01:30]} Bd6 {[%emt 0:04:30]} 10. f4 {[%emt 0:03:30]} e5 {[%emt 0:00:30]} 11. Qd2 {[%emt 0:00:30]} exf4 {[%emt 0:04:30]} 12. Bxf4 {[%emt 0:00:30]} Bxf4 {[%emt 0:00:30]} 13. Rxf4 {[%emt 0:00:30]} O-O {[%emt 0:16:30]} 14. Raf1 {[%emt 0:05:30]} Qc5+ {[%emt 0:04:30]} 15. Kh1 {[%emt 0:01:30]} d6 {[%emt 0:01:30]} 16. Rxf6 {[%emt 0:03:30]} gxf6 {[%emt 0:00:30]} 17. Nd5 {[%emt 0:00:30]} Kg7 {[%emt 0:14:30]} 18. b4 {[%emt 0:01:30]} Qa7 {[%emt 0:05:30]} 19. Qc3 {[%emt 0:01:30]} 1-0

[Event "ESTCC 65 2019"]
[Site "Mali Losinj"]
[Date "2019.09.26"]
[Round "9.12"]
[White "Strobel, Ferdinand"]
[Black "Kiefer, Gerhard"]
[Result "1/2-1/2"]
[ECO "A02"]
[WhiteElo "1956"]
[BlackElo "2227"]
[Annotator "NA"]
[PlyCount "61"]
[EventDate "2019.09.18"]
[EventType "team-tourn"]
[EventCountry "CRO"]
[SourceTitle "playchess.com"]
[Source "ChessBase"]
[SourceQuality "1"]
[WhiteTeam "Austria"]
[BlackTeam "Germany"]
[WhiteTeamCountry "AUT"]
[BlackTeamCountry "GER"]
[TimeControl "40/5400+30:1800+30"]

1. f4 {[%emt 0:00:30]} e5 {[%emt 0:00:00]} 2. fxe5 {[%emt 0:00:00]} d6 {[%emt 0:00:00]} 3. exd6 {[%emt 0:00:00]} Bxd6 {[%emt 0:00:00]} 4. Nf3 {[%emt 0:00:30]} Nf6 {[%emt 0:00:00]} 5. d4 {[%emt 0:02:30]} O-O {[%emt 0:00:30]} 6. Bg5 {[%emt 0:01:30]} Re8 {[%emt 0:00:30]} 7. g3 {[%emt 0:09:30]} Nbd7 {[%emt 0:02:30]} 8. Bg2 {[%emt 0:18:30]} h6 {[%emt 0:01:30]} 9. Bd2 {[%emt 0:09:30]} c5 {[%emt 0:14:30]} 10. c3 {[%emt 0:05:30]} Ng4 {[%emt 0:03:30]} 11. O-O {[%emt 0:03:30]} Ndf6 {[%emt 0:21:30]} 12. Na3 {[%emt 0:06:30]} cxd4 {[%emt 0:00:30]} 13. cxd4 {[%emt 0:00:00]} Ne4 {[%emt 0:08:30]} 14. Nc4 {[%emt 0:06:00]} Bc7 {[%emt 0:00:30]} 15. Rc1 {[%emt 0:06:30]} Be6 {[%emt 0:04:30]} 16. b3 {[%emt 0:03:30]} Bd5 {[%emt 0:22:19]} 17. Nb2 {[%emt 0:05:03]} Nxd2 {[%emt 0:03:43]} 18. Qxd2 {[%emt 0:00:16]} Ne3 {[%emt 0:00:05]} 19. Rf2 {[%emt 0:01:41]} Bb6 {[%emt 0:01:46]} 20. Na4 {[%emt 0:00:25]} Nxg2 {[%emt 0:05:06]} 21. Nxb6 {[%emt 0:01:34]} axb6 {[%emt 0:00:54]} 22. Rxg2 {[%emt 0:03:24]} Qe7 {[%emt 0:00:11]} 23. Rf2 {[%emt 0:01:06]} Qe4 {[%emt 0:00:08]} 24. Qd3 {[%emt 0:03:09]} Rxa2 {[%emt 0:00:19]} 25. Qxe4 {[%emt 0:00:52]} Rxe4 {[%emt 0:01:13]} 26. e3 {[%emt 0:01:28]} Ra3 {[%emt 0:03:45]} 27. Rc3 {[%emt 0:02:02]} Rxb3 {[%emt 0:00:22]} 28. Rc8+ {[%emt 0:00:58]} Kh7 {[%emt 0:00:04]} 29. Nd2 {[%emt 0:00:14]} Rbxe3 {[%emt 0:01:11]} 30. Nxe4 {[%emt 0:00:25]} Rxe4 {[%emt 0:00:06]} 31. Rd2 {[%emt 0:00:17]} 1/2-1/2

[Event "ESTCC 65 2019"]
[Site "Mali Losinj"]
[Date "2019.09.26"]
[Round "9.13"]
[White "Wahlbom, Magnus"]
[Black "Kolbak, Jens"]
[Result "0-1"]
[ECO "D34"]
[WhiteElo "2255"]
[BlackElo "2173"]
[Annotator "NA"]
[PlyCount "102"]
[EventDate "2019.09.18"]
[EventType "team-tourn"]
[EventCountry "CRO"]
[SourceTitle "playchess.com"]
[Source "ChessBase"]
[SourceQuality "1"]
[WhiteTeam "Sweden"]
[BlackTeam "Denmark"]
[WhiteTeamCountry "SWE"]
[BlackTeamCountry "DEN"]
[TimeControl "40/5400+30:1800+30"]

1. d4 {[%emt 0:00:30]} d5 {[%emt 0:00:30]} 2. c4 {[%emt 0:00:00]} e6 {[%emt 0:00:00]} 3. Nc3 {[%emt 0:00:00]} c5 {[%emt 0:00:00]} 4. cxd5 {[%emt 0:00:30]} exd5 {[%emt 0:00:30]} 5. Nf3 {[%emt 0:00:30]} Nc6 {[%emt 0:00:30]} 6. g3 {[%emt 0:00:30]} Nf6 {[%emt 0:00:30]} 7. Bg2 {[%emt 0:00:30]} Be7 {[%emt 0:01:30]} 8. O-O {[%emt 0:00:30]} O-O {[%emt 0:00:30]} 9. Be3 {[%emt 0:05:30]} c4 {[%emt 0:09:30]} 10. Ne5 {[%emt 0:03:30]} Be6 {[%emt 0:05:30]} 11. h3 {[%emt 0:20:30]} Qa5 {[%emt 0:05:30]} 12. f4 {[%emt 0:04:30]} Rad8 {[%emt 0:03:30]} 13. Kh2 {[%emt 0:00:30]} Nxe5 {[%emt 0:23:30]} 14. dxe5 {[%emt 0:04:30]} Ne4 {[%emt 0:00:30]} 15. Nxe4 {[%emt 0:03:30]} dxe4 {[%emt 0:00:30]} 16. Qc2 {[%emt 0:00:30]} f5 {[%emt 0:02:30]} 17. exf6 {[%emt 0:03:30]} Bxf6 {[%emt 0:01:30]} 18. Bxe4 {[%emt 0:00:30]} h6 {[%emt 0:00:30]} 19. a3 {[%emt 0:15:30]} b5 {[%emt 0:00:30]} 20. Rad1 {[%emt 0:01:30]} b4 {[%emt 0:01:30]} 21. axb4 {[%emt 0:03:30]} Qxb4 {[%emt 0:00:30]} 22. Bc1 {[%emt 0:00:30]} a5 {[%emt 0:07:30]} 23. Bc6 {[%emt 0:06:30]} Qb3 {[%emt 0:05:30]} 24. Qxb3 {[%emt 0:07:58]} cxb3 {[%emt 0:00:30]} 25. Kg2 {[%emt 0:02:58]} Rc8 {[%emt 0:03:30]} 26. Bd5 {[%emt 0:01:48]} Bxd5+ {[%emt 0:00:00]} 27. Rxd5 {[%emt 0:00:06]} a4 {[%emt 0:02:00]} 28. Rfd1 {[%emt 0:05:05]} Rc2 {[%emt 0:02:30]} 29. Ra5 {[%emt 0:02:01]} Rfc8 {[%emt 0:01:30]} 30. Rxa4 {[%emt 0:00:22]} Rxc1 {[%emt 0:00:30]} 31. Rxc1 {[%emt 0:00:13]} Rxc1 {[%emt 0:00:00]} 32. Rb4 {[%emt 0:00:05]} Rc2 {[%emt 0:00:00]} 33. Rxb3 {[%emt 0:00:06]} Rxe2+ {[%emt 0:00:30]} 34. Kf3 {[%emt 0:00:12]} Rxb2 {[%emt 0:00:00]} 35. Rd3 {[%emt 0:01:20]} Kf7 {[%emt 0:01:00]} 36. h4 {[%emt 0:01:29]} h5 {[%emt 0:01:30]} 37. Rd5 {[%emt 0:01:09]} Rb3+ {[%emt 0:02:32]} 38. Kg2 {[%emt 0:00:08]} Kg6 {[%emt 0:01:02]} 39. Ra5 {[%emt 0:00:18]} Rc3 {[%emt 0:03:22]} 40. Rb5 {[%emt 0:00:21]} Be7 {[%emt 0:02:50]} 41. Re5 {[%emt 0:30:21]} Bf6 {[%emt 0:31:34]} 42. Rb5 {[%emt 0:00:09]} Kh6 {[%emt 0:01:11]} 43. Rb6 {[%emt 0:00:16]} Rc5 {[%emt 0:00:23]} 44. Rb8 {[%emt 0:00:21]} Kg6 {[%emt 0:00:33]} 45. Rh8 {[%emt 0:00:46]} Rc2+ {[%emt 0:01:41]} 46. Kf3 {[%emt 0:00:10]} Rc3+ {[%emt 0:00:06]} 47. Kg2 {[%emt 0:00:08]} Rd3 {[%emt 0:00:53]} 48. Kh3 {[%emt 0:00:32]} Rd5 {[%emt 0:02:35]} 49. Kg2 {[%emt 0:00:33]} Rd8 {[%emt 0:00:49]} 50. f5+ {[%emt 0:00:15]} Kxf5 {[%emt 0:00:07]} 51. Rxh5+ {[%emt 0:00:17]} Kg4 {[%emt 0:00:08]} 0-1

[Event "ESTCC 65 2019"]
[Site "Mali Losinj"]
[Date "2019.09.26"]
[Round "9.14"]
[White "Olesen, Poul Erik Norgaard"]
[Black "Hammar, Bengt"]
[Result "0-1"]
[ECO "B85"]
[WhiteElo "1996"]
[BlackElo "2161"]
[Annotator "NA"]
[PlyCount "68"]
[EventDate "2019.09.18"]
[EventType "team-tourn"]
[EventCountry "CRO"]
[SourceTitle "playchess.com"]
[Source "ChessBase"]
[SourceQuality "1"]
[WhiteTeam "Denmark"]
[BlackTeam "Sweden"]
[WhiteTeamCountry "DEN"]
[BlackTeamCountry "SWE"]
[TimeControl "40/5400+30:1800+30"]

1. e4 {[%emt 0:00:30]} c5 {[%emt 0:00:30]} 2. Nf3 {[%emt 0:00:00]} d6 {[%emt 0:00:30]} 3. d4 {[%emt 0:00:00]} cxd4 {[%emt 0:01:30]} 4. Nxd4 {[%emt 0:00:30]} Nf6 {[%emt 0:00:30]} 5. Nc3 {[%emt 0:00:30]} a6 {[%emt 0:01:30]} 6. a4 {[%emt 0:00:00]} e6 {[%emt 0:04:30]} 7. Be2 {[%emt 0:03:00]} Be7 {[%emt 0:07:30]} 8. Be3 {[%emt 0:02:30]} Nc6 {[%emt 0:02:30]} 9. O-O {[%emt 0:01:30]} O-O {[%emt 0:02:30]} 10. f4 {[%emt 0:04:30]} Qc7 {[%emt 0:03:30]} 11. Qd2 {[%emt 0:04:30]} Nxd4 {[%emt 0:03:30]} 12. Bxd4 {[%emt 0:00:30]} e5 {[%emt 0:01:30]} 13. Be3 {[%emt 0:01:30]} exf4 {[%emt 0:00:00]} 14. Bxf4 {[%emt 0:04:30]} Be6 {[%emt 0:00:00]} 15. Bf3 {[%emt 0:06:30]} Nd7 {[%emt 0:03:30]} 16. Nd5 {[%emt 0:08:30]} Bxd5 {[%emt 0:00:30]} 17. exd5 {[%emt 0:00:30]} Bf6 {[%emt 0:00:30]} 18. c3 {[%emt 0:01:30]} Be5 {[%emt 0:01:30]} 19. Be3 {[%emt 0:02:30]} g6 {[%emt 0:02:30]} 20. Kh1 {[%emt 0:11:30]} Rae8 {[%emt 0:06:30]} 21. Rae1 {[%emt 0:06:30]} Bg7 {[%emt 0:07:30]} 22. Bd4 {[%emt 0:05:30]} Bxd4 {[%emt 0:00:30]} 23. Qxd4 {[%emt 0:00:30]} Ne5 {[%emt 0:01:30]} 24. Bd1 {[%emt 0:02:30]} Re7 {[%emt 0:03:30]} 25. h3 {[%emt 0:03:30]} Rfe8 {[%emt 0:01:30]} 26. Bc2 {[%emt 0:02:30]} Qd8 {[%emt 0:04:30]} 27. Ra1 {[%emt 0:03:30]} Nd7 {[%emt 0:02:30]} 28. a5 {[%emt 0:01:30]} Re2 {[%emt 0:02:30]} 29. Ba4 {[%emt 0:09:50]} R8e4 {[%emt 0:01:30]} 30. Qd1 {[%emt 0:02:21]} Qg5 {[%emt 0:01:30]} 31. Rg1 {[%emt 0:00:20]} Ne5 {[%emt 0:00:30]} 32. Bc2 {[%emt 0:02:15]} R4e3 {[%emt 0:00:30]} 33. Rc1 {[%emt 0:01:37]} Qg3 {[%emt 0:00:30]} 34. Qd4 {[%emt 0:00:58]} Qxh3+ {[%emt 0:00:30]} 0-1